{"text_format":"1","workbook":"xlsx","n_sheets":3,"sheets":["1. mérés","2. mérés","Összehasonlítás"],"not_rendered":{"charts":6,"images":2,"macros":1,"external_links":0,"defined_names":54,"comments":0,"pivot_tables":0},"unopened":[],"bounds":{"document_bytes":16777216,"sheet_cells":100000,"rows_first":2000,"rows_last":500,"rows_between":2000,"halvings":0,"cell_chars":16384,"cell_head_chars":4096},"cells_cut":0,"cells_raw":0,"read":"whole","date_system":"1900"}

{"sheet":"1. mérés","index":0,"n_rows":50,"n_cols":16,"rows_kept":50,"cut":false,"hidden":false,"merged":[]}
[]
[null,"A:",0,"Négyzetes eltérések átlaga:"]
[null,"φ1:",0,{"$f":"IF(COUNT(D6:D50)>0,AVERAGE(D6:D50),\"\")","v":0}]
[]
["α1","I (α1)","A*COS2(α1+φ1)","Négyzetes eltérések",null,null,null,null,null,null,null,null,null,null,"Nevezze át a fájlt, a névben szerepeljen a saját kódja!"]
[0,null,{"$f":"IF(ISNUMBER(A6),$C$2*POWER(COS(RADIANS(A6+$C$3)),2),\"\")","v":0},{"$f":"IF(ISNUMBER(A6),POWER(B6-C6,2),\"\")","v":0}]
[15,null,{"$f":"IF(ISNUMBER(A7),$C$2*POWER(COS(RADIANS(A7+$C$3)),2),\"\")","v":0},{"$f":"IF(ISNUMBER(A7),POWER(B7-C7,2),\"\")","v":0},null,null,null,null,null,null,null,null,null,null,"Jelölések"]
[30,null,0,0,null,null,null,null,null,null,null,null,null,null,"Zöld","Ide lehet írni adatokat (szög, és mért áramerősség). "]
[45,null,0,0,null,null,null,null,null,null,null,null,null,null,null,"Alap esetben 50 adatig fel lehet menni, szükség esetén bővíthető. "]
[60,null,0,0,null,null,null,null,null,null,null,null,null,null,null,"Az előkészített munkalapon előre be vannak írva a szögek 0 - 360-ig 15 fokonként, de ezen lehet változtatni."]
[75,null,0,0,null,null,null,null,null,null,null,null,null,null,"Piros","Ezek a cellák képleteket tartalmaznak, ezeken nem szabad változtatni. "]
[90,null,0,0,null,null,null,null,null,null,null,null,null,null,null,"A biztonság kedvéért egy alakzat van rajta, azt ne mozdítsuk el!"]
[105,null,0,0,null,null,null,null,null,null,null,null,null,null,"Sárga","Itt lehet az illesztés kiindulási amplitúdó (A vagy B) és fázis (φ) adatait megadni. "]
[120,null,0,0,null,null,null,null,null,null,null,null,null,null,null,"Alap esetben 0 van bennük. Ezeket nem szükséges az első illesztés előtt felülírni, "]
[135,null,0,0,null,null,null,null,null,null,null,null,null,null,null,"mert az Illesztés gomb megnyomása után felülíródnak. "]
[150,null,0,0,null,null,null,null,null,null,null,null,null,null,null,"Ha mérési adataink megváltoztak, új illesztés előtt célszerű visszaírni az eredeti értékeket."]
[165,null,0,0]
[180,null,0,0]
[195,null,0,0,null,null,null,null,null,null,null,null,null,null,"Az α1 oszlopban előre beírt szögek vannak, ha szükséges átírható."]
[210,null,0,0,null,null,null,null,null,null,null,null,null,null,"Az I(α1) oszlopba írhatjuk a méréseinket."]
[225,null,0,0]
[240,null,0,0]
[255,null,0,0,null,null,null,null,null,null,null,null,null,null,"A diagramokon ne változtassunk! A beírt adataink azonnal megjelennek benne."]
[270,null,0,0]
[285,null,0,0,null,null,null,null,null,null,null,null,null,null,"A mérés elemzése az ILLESZTÉS gomb megnyomásával lehetséges. "]
[300,null,0,0,null,null,null,null,null,null,null,null,null,null,"Az Excelbe telepített Solver modul a négyzetes eltérések átlagát felhasználva "]
[315,null,0,0,null,null,null,null,null,null,null,null,null,null,"egy függvényt illeszt a mért adatainkra."]
[330,null,0,0,null,null,null,null,null,null,null,null,null,null,"Az ILLESZTÉS gomb megnyomását követően felugrik egy ablak, melyet az OK gombbal nyugtázhatunk."]
[345,null,0,0,null,null,null,null,null,null,null,null,null,null,"Az illesztést követően megjelenik az illesztett görbe a mért görbénk mellett "]
[360,null,0,0,null,null,null,null,null,null,null,null,null,null,"a Mért és illesztett adatok… című diagramon és megjelenik az illesztés „jósága” is "]
[null,null,"","",null,null,null,null,null,null,null,null,null,null,"az Illeszkedés című diagramon. Ezek segítségével elemezhetjük a mérési eredményeinket."]
[null,null,"",""]
[null,null,"",""]
[null,null,"",""]
[null,null,"",""]
[null,null,"",""]
[null,null,"",""]
[null,null,"",""]
[null,null,"",""]
[null,null,"",""]
[null,null,"",""]
[null,null,"",""]
[null,null,"",""]
[null,null,"",""]
[null,null,"",""]
[null,null,"",""]
[null,null,"",""]
[null,null,"",""]
[null,null,"",""]
[null,null,"",""]

{"sheet":"2. mérés","index":1,"n_rows":50,"n_cols":16,"rows_kept":50,"cut":false,"hidden":false,"merged":[]}
[]
[null,"B:",0,"Négyzetes eltérések átlaga:"]
[null,"φ2",0,{"$f":"IF(COUNT(D6:D50)>0,AVERAGE(D6:D50),\"\")","v":0}]
[]
["α2","I (α2)","B*COS2(α2+φ2)*cos2(90-(α2+φ2)","Négyzetes eltérések",null,null,null,null,null,null,null,null,null,null,"Nevezze át a fájlt, a névben szerepeljen a saját kódja!"]
[0,null,{"$f":"IF(ISNUMBER(A6),$C$2*POWER(COS(RADIANS(A6+$C$3)),2)*POWER(COS(RADIANS(90-(A6+$C$3))),2),\"\")","v":0},{"$f":"IF(ISNUMBER(A6),POWER(B6-C6,2),\"\")","v":0}]
[15,null,{"$f":"IF(ISNUMBER(A7),$C$2*POWER(COS(RADIANS(A7+$C$3)),2)*POWER(COS(RADIANS(90-(A7+$C$3))),2),\"\")","v":0},{"$f":"IF(ISNUMBER(A7),POWER(B7-C7,2),\"\")","v":0},null,null,null,null,null,null,null,null,null,null,"Jelölések"]
[30,null,0,0,null,null,null,null,null,null,null,null,null,null,"Zöld","Ide lehet írni adatokat (szög, és mért áramerősség). "]
[45,null,0,0,null,null,null,null,null,null,null,null,null,null,null,"Alap esetben 50 adatig fel lehet menni, szükség esetén bővíthető. "]
[60,null,0,0,null,null,null,null,null,null,null,null,null,null,null,"Az előkészített munkalapon előre be vannak írva a szögek 0 - 360-ig 15 fokonként, de ezen lehet változtatni."]
[75,null,0,0,null,null,null,null,null,null,null,null,null,null,"Piros","Ezek a cellák képleteket tartalmaznak, ezeken nem szabad változtatni. "]
[90,null,0,0,null,null,null,null,null,null,null,null,null,null,null,"A biztonság kedvéért egy alakzat van rajta, azt ne mozdítsuk el!"]
[105,null,0,0,null,null,null,null,null,null,null,null,null,null,"Sárga","Itt lehet az illesztés kiindulási amplitúdó (A vagy B) és fázis (φ) adatait megadni. "]
[120,null,0,0,null,null,null,null,null,null,null,null,null,null,null,"Alap esetben 0 van bennük. Ezeket nem szükséges az első illesztés előtt felülírni, "]
[135,null,0,0,null,null,null,null,null,null,null,null,null,null,null,"mert az Illesztés gomb megnyomása után felülíródnak. "]
[150,null,0,0,null,null,null,null,null,null,null,null,null,null,null,"Ha mérési adataink megváltoztak, új illesztés előtt célszerű visszaírni az eredeti értékeket."]
[165,null,0,0]
[180,null,0,0]
[195,null,0,0,null,null,null,null,null,null,null,null,null,null,"Az α1 oszlopban előre beírt szögek vannak, ha szükséges átírható."]
[210,null,0,0,null,null,null,null,null,null,null,null,null,null,"Az I(α1) oszlopba írhatjuk a méréseinket."]
[225,null,0,0]
[240,null,0,0]
[255,null,0,0,null,null,null,null,null,null,null,null,null,null,"A diagramokon ne változtassunk! A beírt adataink azonnal megjelennek benne."]
[270,null,0,0]
[285,null,0,0,null,null,null,null,null,null,null,null,null,null,"A mérés elemzése az ILLESZTÉS gomb megnyomásával lehetséges. "]
[300,null,0,0,null,null,null,null,null,null,null,null,null,null,"Az Excelbe telepített Solver modul a négyzetes eltérések átlagát felhasználva "]
[315,null,0,0,null,null,null,null,null,null,null,null,null,null,"egy függvényt illeszt a mért adatainkra."]
[330,null,0,0,null,null,null,null,null,null,null,null,null,null,"Az ILLESZTÉS gomb megnyomását követően felugrik egy ablak, melyet az OK gombbal nyugtázhatunk."]
[345,null,0,0,null,null,null,null,null,null,null,null,null,null,"Az illesztést követően megjelenik az illesztett görbe a mért görbénk mellett "]
[360,null,0,0,null,null,null,null,null,null,null,null,null,null,"a Mért és illesztett adatok… című diagramon és megjelenik az illesztés „jósága” is "]
[null,null,{"$f":"IF(ISNUMBER(A31),$C$2*POWER(COS(RADIANS(A31+$C$3)),2),\"\")","v":""},"",null,null,null,null,null,null,null,null,null,null,"az Illeszkedés című diagramon. Ezek segítségével elemezhetjük a mérési eredményeinket."]
[null,null,"",""]
[null,null,"",""]
[null,null,"",""]
[null,null,"",""]
[null,null,"",""]
[null,null,"",""]
[null,null,"",""]
[null,null,"",""]
[null,null,"",""]
[null,null,"",""]
[null,null,"",""]
[null,null,"",""]
[null,null,"",""]
[null,null,"",""]
[null,null,"",""]
[null,null,"",""]
[null,null,"",""]
[null,null,"",""]
[null,null,"",""]

{"sheet":"Összehasonlítás","index":2,"n_rows":9,"n_cols":14,"rows_kept":9,"cut":false,"hidden":false,"merged":[]}
[]
[]
[null,null,null,null,null,null,null,null,null,null,null,null,null,"Ezen a munkalapon láthatók az 1. mérés és 2. mérés illesztett eredményei az Mért és illesztett adatok összesítése diagramon"]
[null,null,null,null,null,null,null,null,null,null,null,null,null,"és az illesztések jósága az Illeszkedés diagramon. Ezek a diagramok segítenek adataink feldolgozásában, elemzésében, illetve összehasonlításában."]
[]
[]
[]
[]
[null,null,null,null,null,null,null,null,null,null,null,null,null,"A 8. pont elvégzéséhez nyissunk egy új munkalapot és abban dolgozzunk!"]